[Event "FAI-ch Master 2022"]
[Site "Eidi"]
[Date "2022.04.12"]
[Round "4.3"]
[White "Egilstoft, Rogvi"]
[Black "Apol, Luitjen Akselsson"]
[Result "1-0"]
[ECO "B20"]
[WhiteElo "2378"]
[BlackElo "2154"]
[Annotator "TA"]
[PlyCount "89"]
[EventDate "2022.04.10"]
[EventType "tourn"]
[EventCountry "FAI"]
[SourceTitle "playchess.com"]
[Source "ChessBase"]
[SourceQuality "1"]
[TimeControl "40/5400+30:1800+30"]

{[%evp 9,89,12,16,-2,9,-30,4,-33,29,-17,29,-7,39,10,89,69,65,74,99,41,68,7,0,0,14,10,8,8,20,12,135,113,109,111,97,89,161,151,142,136,166,172,325,325,644,604,631,618,706,666,623,424,539,524,687,685,663,648,690,690,690,618,1317,579,1982,1983,29949,12845,29943,5949,29983,29984,29984,29985,29988,29989,29990,29991,29992,29993,29993,29993]} 1. e4 {[%emt 0:00:04]} c5 {[%emt 0:00:17]} 2. Ne2 {[%emt 0:00:13]} Nf6 {[%emt 0:00:50]} 3. d3 {[%emt 0:00:36]} Nc6 {[%emt 0:12:08]} 4. g3 {[%emt 0:00:38]} g6 {[%emt 0:11:05]} 5. Bg2 {[%emt 0:02:06]} Bg7 {[%emt 0:00:09]} 6. c3 {[%emt 0:01:11] B20: Sicilian: Unusual White 2nd moves.} e5 {[%emt 0:03:40]} 7. O-O {[%emt 0:00:21]} O-O {[%emt 0:00:52] [#]} 8. a3 $146 {[%emt 0:05:51] The position is equal.} ({Predecessor:} 8. c4 d6 9. Nbc3 a6 10. f4 exf4 11. gxf4 Rb8 12. Rb1 Bg4 13. h3 Bxe2 14. Nxe2 {1-0 (36) Kryakvin,D (2594)-Badelka,O (2427) Cheliabinsk 2020}) 8... a5 {[%emt 0:20:14]} ({Better is} 8... d5 $15) 9. a4 {[%emt 0:00:25]} (9. c4 $142) 9... h6 {[%emt 0:00:09]} (9... d5 $142) 10. Na3 {[%emt 0:00:46]} d6 {[%emt 0:00:19]} (10... d5 $11) 11. h3 {[%emt 0:04:47]} Nh7 {[%emt 0:15:58]} (11... d5 $11) 12. Be3 $16 {[%emt 0:02:34]} Ng5 {[%emt 0:04:33]} 13. Kh2 {[%emt 0:04:50]} Ne6 {[%emt 0:02:08]} 14. Nc2 {[%emt 0:13:34]} (14. f4 $16) 14... Qe7 {[%emt 0:01:42]} 15. d4 {[%emt 0:06:15]} ({White should try} 15. Qd2 $14) 15... exd4 $11 {[%emt 0:00:11]} 16. cxd4 {[%emt 0:00:04] Hoping for d5.} cxd4 {[%emt 0:00:11]} 17. Ncxd4 {[%emt 0:02:30]} Ncxd4 {[%emt 0:06:10]} 18. Nxd4 {[%emt 0:00:10]} Nc5 {[%emt 0:00:24]} 19. Nb5 {[%emt 0:06:59]} Nxe4 {[%emt 0:03:11] White stays focused until the end.} (19... Bd7 $11 {keeps the balance.}) 20. Rc1 {[%emt 0:00:19]} Bf5 {[%emt 0:05:27]} (20... Bxb2 $2 21. Rc7 Qe5 22. Bf4 $18) 21. Rc7 {[%emt 0:01:32]} Qd8 {[%emt 0:00:51][%cal Oe4c5]} 22. Rxb7 {[%emt 0:10:06] Strongly threatening g4. &Bianco is more active.} Rb8 {[%emt 0:03:47]} (22... Nc5 $16) 23. Rxb8 {[%emt 0:03:52]} Qxb8 {[%emt 0:00:01]} 24. Bf4 {[%emt 0:00:04] aiming for g4.} Re8 {[%emt 0:03:38] [#]} 25. f3 $1 {[%emt 0:17:42][%cal Bf2f3,Bf3f4][%mdl 32]} Ng5 {[%emt 0:02:37]} (25... Nc5) 26. Nxd6 $18 {[%emt 0:04:40]} Be5 $2 {[%emt 0:01:06]} (26... Rd8 27. Nxf5 Rxd1 28. Bxb8 Rxf1) 27. Bxe5 {[%emt 0:04:23]} Rxe5 {[%emt 0:00:02]} 28. f4 $1 {[%emt 0:00:31][%csl LRe5,LRg5]} Re3 {[%emt 0:00:20]} 29. Nxf5 {[%emt 0:04:05]} gxf5 {[%emt 0:00:02]} 30. fxg5 {[%emt 0:00:10]} Qxg3+ {[%emt 0:02:25]} 31. Kh1 {[%emt 0:00:07]} hxg5 {[%emt 0:00:46]} 32. Qd8+ {[%emt 0:02:37]} Kg7 {[%emt 0:00:01]} 33. Qxa5 {[%emt 0:00:20]} Re2 {[%emt 0:00:40][%csl Ge2][%cal Rg3g2]} 34. Qc3+ {[%emt 0:00:14]} Qxc3 {[%emt 0:00:25]} 35. bxc3 {[%emt 0:00:01][%mdl 4096] Endgame Threatens to win with Ra1. KRB-KR} Kf6 {[%emt 0:00:51]} 36. c4 {[%emt 0:01:27] And now Ra1 would win.} Ke5 {[%emt 0:00:32]} 37. c5 {[%emt 0:00:38] Intending Rc1 and mate.} Ra2 {[%emt 0:00:08]} 38. Re1+ {[%emt 0:00:27]} (38. Rc1 $142 Rxa4 39. c6 Ra7 40. c7 Rxc7 41. Rxc7 f6 42. Rc5+ Ke6 43. Bf1) 38... Kf4 {[%emt 0:01:02]} 39. c6 {[%emt 0:00:18]} (39. Rc1 $142 Rxa4 40. c6 Ra8 41. c7 Rh8 42. c8=Q Rxc8 43. Rxc8 Kg3 44. Rc5) 39... Rc2 {[%emt 0:00:33]} 40. a5 {[%emt 0:00:00][%cal Ba4a5,Ba5a6,Ba6a7][%mdl 32] White mates.} g4 {[%emt 0:00:00]} 41. hxg4 {[%emt 0:16:40]} fxg4 {[%emt 0:15:25]} 42. a6 {[%emt 0:00:22]} Kg3 {[%emt 0:01:05] [#]} 43. a7 $1 {[%emt 0:00:22]} Ra2 {[%emt 0:00:31] [#]} (43... Rxg2 44. Re3+) 44. c7 $1 {[%emt 0:00:33]} Rxg2 {[%emt 0:00:09]} 45. Rg1 {[%emt 0:00:15] Weighted Error Value: White=0.37/Black=0.89} ({Inferior is} 45. c8=Q Rh2+ 46. Kg1 Rg2+ 47. Kh1 Rh2+ 48. Kg1 Rg2+ 49. Kh1 $11) 1-0

[Event "FAI-ch Master 2022"]
[Site "Eidi"]
[Date "2022.04.12"]
[Round "4.4"]
[White "Simonsen, Hans Kristian"]
[Black "Nielsen, Hogni Egilstoft"]
[Result "0-1"]
[ECO "E62"]
[WhiteElo "2166"]
[BlackElo "2405"]
[Annotator "TA"]
[PlyCount "90"]
[EventDate "2022.04.10"]
[EventType "tourn"]
[EventCountry "FAI"]
[SourceTitle "playchess.com"]
[Source "ChessBase"]
[SourceQuality "1"]
[TimeControl "40/5400+30:1800+30"]

{[%evp 22,90,49,41,63,55,58,42,64,32,76,54,73,60,66,41,56,46,28,31,70,68,82,47,64,0,0,0,0,-17,0,0,0,0,112,-56,-53,-44,0,-204,-203,-195,-128,-98,-89,-86,-72,-162,-173,-173,-172,-152,-173,-173,-173,-173,-173,-154,-162,-179,-179,-179,-179,-179,0,-29982,-29980,-29980,-29981,-29994,-29995]} 1. d4 {[%emt 0:00:13]} g6 {[%emt 0:00:27]} 2. c4 {[%emt 0:00:15]} Bg7 {[%emt 0:00:12]} 3. Nf3 {[%emt 0:00:17]} d6 {[%emt 0:00:46]} 4. g3 {[%emt 0:01:02]} Nf6 {[%emt 0:02:59]} 5. Bg2 {[%emt 0:01:34]} O-O {[%emt 0:01:22]} 6. O-O {[%emt 0:00:07]} Nc6 {[%emt 0:02:47]} 7. Nc3 {[%emt 0:02:04]} Bg4 {[%emt 0:00:59]} 8. h3 {[%emt 0:05:03]} Bxf3 {[%emt 0:02:57]} 9. Bxf3 {[%emt 0:00:34]} Nd7 {[%emt 0:00:42]} 10. e3 {[%emt 0:02:21]} e5 {[%emt 0:01:24]} 11. d5 {[%emt 0:00:08]} Ne7 {[%emt 0:05:00]} 12. e4 {[%emt 0:02:47]} h6 {[%emt 0:08:24] E62: King's Indian: Fianchetto: 6...c6 and Panno Variation (6...Nc6) without ...a6.} 13. Bd2 {[%emt 0:10:53]} f5 {[%emt 0:09:43] [#]} 14. Bg2 $146 {[%emt 0:00:26]} ({Predecessor:} 14. Kg2 fxe4 15. Nxe4 Nf5 16. h4 Nd4 17. Bg4 Nf6 18. Nxf6+ Qxf6 19. h5 g5 20. Bc3 c5 21. Qd3 {0-1 (39) Nedilko,V (2414)-Tregubov,V (2233) Odessa 2009}) 14... Kh7 {[%emt 0:02:33] White is slightly better.} 15. Rc1 {[%emt 0:02:32]} Rf7 {[%emt 0:10:55]} 16. b4 {[%emt 0:04:17]} Nf6 {[%emt 0:03:24]} 17. exf5 {[%emt 0:02:00]} Nxf5 {[%emt 0:03:12][%cal Be7f5,Bf5d4,Bd4f3][%mdl 32]} 18. c5 {[%emt 0:08:16]} Qd7 {[%emt 0:12:20]} 19. Qe2 {[%emt 0:14:37]} Nd4 {[%emt 0:07:16]} 20. Qc4 {[%emt 0:02:45]} Raf8 {[%emt 0:10:15]} 21. c6 {[%emt 0:01:12]} bxc6 {[%emt 0:01:41]} 22. dxc6 {[%emt 0:00:12]} Qf5 {[%emt 0:03:32]} 23. Be3 {[%emt 0:00:35]} Nf3+ $1 {[%emt 0:02:50] Pair of Knights!} 24. Kh1 {[%emt 0:00:15] Black must now prevent g4.} h5 {[%emt 0:01:27] Prevents g4.} 25. Bxa7 {[%emt 0:04:35]} Nd2 {[%emt 0:01:54][%csl LRc4,LRf1]} 26. Qe2 {[%emt 0:00:19]} Nxf1 {[%emt 0:00:02]} 27. Rxf1 {[%emt 0:00:42]} d5 {[%emt 0:01:36]} (27... Ra8 $11 28. Be3 Bh6) 28. Bc5 $2 {[%emt 0:01:01]} (28. Nxd5 $16 Nxd5 29. Bxd5 Qxh3+ 30. Kg1) 28... Rd8 $15 {[%emt 0:01:42]} 29. a4 {[%emt 0:02:50]} d4 {[%emt 0:00:07][%cal Bd5d4,Bd4d3][%mdl 32]} 30. Ne4 {[%emt 0:00:24]} (30. Qa2 $11 dxc3 31. Qxf7) 30... d3 $19 {[%emt 0:00:02]} 31. Nxf6+ {[%emt 0:00:59]} Bxf6 {[%emt 0:00:50]} (31... Rxf6 $19 32. Qd2 Bh6) 32. Qa2 $17 {[%emt 0:10:25]} Be7 {[%emt 0:01:03]} 33. Be3 {[%emt 0:00:07]} Bxb4 {[%emt 0:01:44]} 34. g4 {[%emt 0:00:15]} (34. Qc4 $17 {was worth a try.} Ba5 35. Bd5) 34... hxg4 $19 {[%emt 0:00:21]} 35. hxg4 {[%emt 0:00:49]} Qf6 {[%emt 0:00:05]} 36. Bg5 {[%emt 0:03:20] [#] Against Qh4+} Qxg5 {[%emt 0:00:02]} 37. Qxf7+ {[%emt 0:00:07]} Kh6 {[%emt 0:00:04][%cal Oe5e4] Threatens to win with ...e4!} 38. Bf3 {[%emt 0:01:40]} e4 $1 {[%emt 0:01:05]} 39. Bd1 {[%emt 0:00:03]} Qe5 {[%emt 0:01:42] ( -> ...Kg5). Active counter play!} 40. Kg2 {[%emt 0:00:00]} Rf8 {[%emt 0:00:00]} 41. Rh1+ {[%emt 0:16:46]} Kg5 {[%emt 0:15:44] The board is on fire.} 42. Qh7 {[%emt 0:02:06] [#] Intending Qh4+ and mate.} Rxf2+ $2 $40 {[%emt 0:10:28][%mdl 128] Black has some attack.} (42... Kf6 $1 $19 {Strongly threatening ...Bc5.} 43. f4 exf3+ 44. Bxf3 Qb2+ 45. Kh3 Qf2 46. Qh4+ Qxh4+ 47. Kxh4 Ke5) 43. Kh3 $2 {[%emt 0:02:17][%mdl 8192] [#]} (43. Kxf2 $11 Qf4+ 44. Kg2 Qd2+ 45. Kh3 Qe3+ 46. Kg2 Qd2+ 47. Kh3 Qe3+ 48. Kg2 Qd2+) 43... Kf4 $1 {[%emt 0:03:56] Black mates.} 44. Qh4 {[%emt 0:02:13]} Ke3 {[%emt 0:00:18]} 45. Qh6+ {[%emt 0:02:28]} g5 {[%emt 0:00:35] Weighted Error Value: White=0.44/Black=0.19 (very precise)} 0-1

[Event "FAI-ch Master 2022"]
[Site "Eidi"]
[Date "2022.04.13"]
[Round "5.1"]
[White "Nielsen, Hogni Egilstoft"]
[Black "Nolsoe, Rani"]
[Result "1-0"]
[ECO "B08"]
[WhiteElo "2405"]
[BlackElo "2072"]
[Annotator "TA"]
[PlyCount "41"]
[EventDate "2022.04.10"]
[EventType "tourn"]
[EventCountry "FAI"]
[SourceTitle "playchess.com"]
[Source "ChessBase"]
[SourceQuality "1"]
[TimeControl "40/5400+30:1800+30"]

{[%evp 13,41,20,42,12,26,-5,10,8,26,0,0,-5,28,0,47,33,111,97,106,105,77,77,704,637,734,714,681,618,1140,730]} 1. e4 {[%emt 0:00:07]} d6 {[%emt 0:09:24]} 2. d4 {[%emt 0:00:38]} Nf6 {[%emt 0:00:33]} 3. Nc3 {[%emt 0:00:23]} g6 {[%emt 0:00:06]} 4. Nf3 {[%emt 0:04:02]} Bg7 {[%emt 0:01:14]} 5. h3 {[%emt 0:05:16]} O-O {[%emt 0:02:40]} 6. Be3 {[%emt 0:00:17]} c6 {[%emt 0:02:26]} 7. a4 $1 {[%emt 0:01:31][%cal Ba2a4,Ba4a5,Ba5a6][%mdl 32] The main line 7.a4 scores better than 7.Qd2.} Nbd7 {[%emt 0:04:49]} 8. g3 {[%emt 0:06:05] B08: Pirc Defence: Classical System.} e5 {[%emt 0:03:40]} 9. Bg2 {[%emt 0:00:51]} Qc7 {[%emt 0:01:14]} 10. O-O {[%emt 0:01:35] The position is equal.} b6 {[%emt 0:05:29]} 11. Re1 {[%emt 0:14:09]} Bb7 {[%emt 0:02:18] [#]} 12. a5 $146 {[%emt 0:04:44]} ({Predecessor:} 12. Qd2 a6 13. Red1 b5 14. dxe5 dxe5 15. Qd6 Qxd6 16. Rxd6 Rfd8 17. Rad1 Bf8 18. R6d3 {1-0 (48) Svane,R (2613)-Yankelevich,L (2461) Playchess.com INT 2020}) 12... exd4 {[%emt 0:07:50]} 13. Bxd4 {[%emt 0:05:09] [#] Hoping for a6.} ({Don't play} 13. Qxd4 {[#]} Ng4 $1 14. Qc4 (14. axb6 axb6 15. Qd2 Nxe3 $17) 14... Nxe3 15. Rxe3 Nc5 $15) (13. Nxd4 $5 {[%cal Ra5a6]} bxa5 14. Nb3 $14) 13... Ne5 {[%emt 0:02:47]} (13... Rad8 $11) 14. Nd2 {[%emt 0:01:36]} Rfe8 {[%emt 0:02:54]} ({Black should try} 14... Rad8 $14) 15. f4 $36 {[%emt 0:06:45][%mdl 2048] Black is under strong pressure.} Ned7 {[%emt 0:00:16]} 16. a6 {[%emt 0:04:44]} Bc8 {[%emt 0:07:52]} 17. Nc4 {[%emt 0:05:47] Threatens to win with e5. &Bianco is more active.} Nxe4 {[%emt 0:22:52][%mdl 8192] A mistake that costs the game.} 18. Bxg7 {[%emt 0:03:31] White is clearly winning.} Kxg7 {[%emt 0:00:20]} 19. Qd4+ {[%emt 0:03:13]} Ndf6 {[%emt 0:07:10]} 20. Rxe4 {[%emt 0:07:40]} c5 {[%emt 0:03:10]} 21. Qxd6 {[%emt 0:00:37] Weighted Error Value: White=0.23 (precise) /Black=0.31} 1-0

[Event "FAI-ch Master 2022"]
[Site "Eidi"]
[Date "2022.04.13"]
[Round "5.2"]
[White "Apol, Luitjen Akselsson"]
[Black "Simonsen, Hans Kristian"]
[Result "1-0"]
[ECO "B15"]
[WhiteElo "2154"]
[BlackElo "2166"]
[Annotator "TA"]
[PlyCount "59"]
[EventDate "2022.04.10"]
[EventType "tourn"]
[EventCountry "FAI"]
[SourceTitle "playchess.com"]
[Source "ChessBase"]
[SourceQuality "1"]
[TimeControl "40/5400+30:1800+30"]

{[%evp 15,59,30,42,23,8,16,26,0,54,47,43,45,49,48,54,31,24,24,27,39,29,27,88,78,111,64,485,455,666,656,801,792,805,778,825,825,905,472,429,454,641,619,1140,629,838,824]} 1. e4 {[%emt 0:00:11]} c6 {[%emt 0:00:03]} 2. d4 {[%emt 0:00:23]} d5 {[%emt 0:00:04]} 3. Nc3 {[%emt 0:00:19]} dxe4 {[%emt 0:00:18]} 4. Nxe4 {[%emt 0:00:15]} Nf6 {[%emt 0:00:07]} 5. Nxf6+ {[%emt 0:01:19]} exf6 {[%emt 0:00:05]} 6. c3 {[%emt 0:01:38]} Bd6 {[%emt 0:00:05]} 7. Bd3 {[%emt 0:00:26]} O-O {[%emt 0:00:06]} 8. Ne2 {[%emt 0:02:04][%cal Bg1e2,Be2g3,Bg3f5,Bf5d6][%mdl 32]} Re8 {[%emt 0:00:54]} 9. O-O {[%emt 0:01:12] B15: Caro-Kann: 3 Nc3: 3...g6 and 3...dxe4 4 Nxe4 Nf6 5 Nxf6+ exf6.} (9. Qc2 $5 {[%cal Rd3h7]}) 9... Qc7 {[%emt 0:09:43]} 10. Ng3 {[%emt 0:03:00]} Nd7 {[%emt 0:01:48]} 11. Nf5 {[%emt 0:00:29][%cal Of5g7] And now Nxg7! would win. White has an edge.} Nf8 {[%emt 0:05:29]} (11... Bxh2+ $11 12. Kh1 Bd6) 12. Nxd6 $14 {[%emt 0:02:40]} Qxd6 {[%emt 0:00:05] [#]} 13. b3 $146 {[%emt 0:14:52]} ({Predecessor:} 13. Qf3 Ng6 14. Bd2 Be6 15. Rfe1 Rad8 16. Bf1 Qc7 17. Qg3 Qa5 18. a4 h5 19. h3 {1-0 (37) Mastrovasilis,D (2627)-Dreev,A (2623) Warsaw 2021}) 13... Bd7 {[%emt 0:16:50]} 14. a4 {[%emt 0:23:35]} Rad8 {[%emt 0:07:55]} 15. Bb2 {[%emt 0:07:27]} Ne6 {[%emt 0:10:57]} 16. Qc2 {[%emt 0:10:04]} Nf4 {[%emt 0:02:29][%cal Od7h3] [#] Strongly threatening ...Bh3!} 17. Bxh7+ {[%emt 0:02:23]} Kh8 {[%emt 0:00:18]} 18. Be4 {[%emt 0:00:11] Prevents Qd5.} Bg4 {[%emt 0:12:27]} (18... c5 $11) 19. f3 $36 {[%emt 0:03:07][%mdl 2048] White is really pushing.} f5 {[%emt 0:11:22][%cal Og4h3] [#]} 20. Bd3 {[%emt 0:18:34]} (20. fxg4 $6 Rxe4 21. Kh1 (21. gxf5 $2 Ne2+ 22. Qxe2 Rxe2 $19) 21... Rde8 $11) (20. Bxf5 $6 Re2 21. fxg4 Rxc2 22. Bxc2 Ne2+ 23. Kh1 Qh6 $11) (20. Bc1 $1 $16) 20... Re3 $2 {[%emt 0:00:57][%mdl 8192] This costs Black the game.} 21. Bc1 $18 {[%emt 0:00:24] White is clearly winning.} (21. fxg4 Nxd3 22. Rxf5 Qe7 $16) 21... Qe7 {[%emt 0:00:57]} (21... Rxd3 $142 22. Bxf4 (22. fxg4 Rxc3 23. Bxf4 Rxc2 $11) 22... Qxf4 23. Qxd3 Bh5) 22. fxg4 {[%emt 0:01:50]} Nxd3 {[%emt 0:00:37]} 23. Bxe3 {[%emt 0:00:08]} Qxe3+ {[%emt 0:00:17]} 24. Kh1 {[%emt 0:00:02]} fxg4 {[%emt 0:00:33]} 25. Rad1 {[%emt 0:01:56]} ({Not} 25. Rxf7 Kg8 26. Raf1 (26. Rxb7 $2 Nf2+ 27. Qxf2 Qxf2 $19) 26... g3 $18) 25... Nf4 {[%emt 0:01:17]} 26. Qd2 {[%emt 0:02:31]} Nd5 {[%emt 0:00:15]} 27. Rxf7 {[%emt 0:01:11]} Qe6 {[%emt 0:00:20]} (27... Qxd2 $142 28. Rxd2 Nxc3 29. Rxb7 Ne4) 28. Rdf1 {[%emt 0:01:39] Qg5 is the strong threat.} Nf6 {[%emt 0:02:18]} 29. Rxb7 {[%emt 0:00:19]} g3 {[%emt 0:00:11]} 30. Qg5 {[%emt 0:00:21] Weighted Error Value: White=0.62/Black=0.86} 1-0

[Event "FAI-ch Master 2022"]
[Site "Eidi"]
[Date "2022.04.13"]
[Round "5.3"]
[White "Olsen, Wille"]
[Black "Egilstoft, Rogvi"]
[Result "1-0"]
[ECO "A42"]
[WhiteElo "2006"]
[BlackElo "2378"]
[Annotator "TA"]
[PlyCount "77"]
[EventDate "2022.04.10"]
[EventType "tourn"]
[EventCountry "FAI"]
[SourceTitle "playchess.com"]
[Source "ChessBase"]
[SourceQuality "1"]
[TimeControl "40/5400+30:1800+30"]

{[%evp 12,77,47,39,101,61,94,105,110,104,114,113,118,93,116,107,134,125,114,27,31,27,113,96,88,89,131,120,262,241,331,239,308,322,327,322,428,441,439,414,548,515,29995,29993,29994,29994,29995,29996,29996,5687,5490,5490,4766,2067,1784,871,857,815,722,681,664,609,602,601,587,555,5147,517]} 1. Nf3 {[%emt 0:00:13]} d6 {[%emt 0:00:14]} 2. d4 {[%emt 0:00:13]} Nd7 {[%emt 0:00:12]} 3. c4 {[%emt 0:00:15]} e5 {[%emt 0:00:23]} 4. Nc3 {[%emt 0:00:55]} g6 {[%emt 0:01:50]} 5. e4 {[%emt 0:01:48]} Bg7 {[%emt 0:00:58]} 6. Be2 {[%emt 0:05:21]} Ne7 {[%emt 0:01:41]} 7. Be3 {[%emt 0:07:44]} h6 {[%emt 0:04:55] A42: Modern Defence: Averbakh Variation.} (7... O-O $14) 8. dxe5 {[%emt 0:03:05]} Nxe5 {[%emt 0:02:32]} 9. Nxe5 {[%emt 0:04:36]} Bxe5 {[%emt 0:00:08] [#] White is better.} 10. Qd2 $146 {[%emt 0:03:12]} ({Predecessor:} 10. g4 a6 11. Qd2 Bg7 12. O-O-O b6 13. Rhg1 Bb7 14. h4 Nc6 15. Nd5 a5 16. Kb1 {1-0 (49) Gruber,T (2277)-Freundlieb,T (2130) Schwarzburg 2004}) 10... Bg7 {[%emt 0:02:44]} 11. Bd4 {[%emt 0:01:16]} f6 {[%emt 0:00:57]} 12. Be3 {[%emt 0:11:05]} Be6 {[%emt 0:02:02]} 13. O-O {[%emt 0:02:41]} Qd7 {[%emt 0:04:34]} 14. c5 {[%emt 0:04:41]} dxc5 {[%emt 0:05:00]} 15. Qxd7+ {[%emt 0:01:48]} (15. Qc2 $16) 15... Bxd7 $11 {[%emt 0:00:45]} 16. Bxc5 {[%emt 0:00:37]} c6 {[%emt 0:03:02] Prevents Nb5.} (16... Nc6 $1 $11 {keeps the balance.}) 17. Rad1 $36 {[%emt 0:06:50][%mdl 2048] White is in control.} b6 {[%emt 0:07:25]} 18. Bd6 {[%emt 0:05:33] &Bianco is much more active.} Kf7 {[%emt 0:08:53]} 19. f4 {[%emt 0:06:47][%cal Of4f5]} Rhe8 {[%emt 0:09:17] This move loses the game for Black.} (19... h5 $16 20. Rfe1 Rae8) 20. f5 $18 {[%emt 0:03:15] [#] Hoping for Bc4+.} Bf8 {[%emt 0:02:37]} 21. fxg6+ {[%emt 0:08:27]} Kxg6 {[%emt 0:00:25]} 22. e5 {[%emt 0:02:58]} f5 {[%emt 0:03:59]} 23. g4 {[%emt 0:01:20]} Kg5 {[%emt 0:16:18]} 24. h4+ {[%emt 0:05:01]} Kg6 {[%emt 0:00:28]} 25. Bd3 {[%emt 0:04:20]} ({Less strong is} 25. Bxe7 Rxe7 26. gxf5+ (26. Rd6+ Kh7 $16) 26... Bxf5 $18) 25... Nd5 {[%emt 0:01:39]} 26. gxf5+ {[%emt 0:01:25]} Kh5 {[%emt 0:02:11]} (26... Kg7 $18 27. Bxf8+ Rxf8 28. Nxd5 cxd5) 27. Nxd5 {[%emt 0:00:45]} cxd5 {[%emt 0:00:11]} 28. Rf4 {[%emt 0:00:33][%cal Rd3e2]} Bxf5 {[%emt 0:00:58]} 29. Rxf5+ {[%emt 0:02:30]} Kg4 {[%emt 0:02:03]} 30. Bxf8 {[%emt 0:02:23]} (30. Kh2 $142 Rxe5 31. Rg1+ Kxh4 32. Rf4+ Kh5 33. Bg6#) 30... Rxf8 {[%emt 0:00:06] White is clearly winning.} 31. Rxf8 {[%emt 0:00:55]} Rxf8 {[%emt 0:00:06][%mdl 4096] Endgame KRB-KR} 32. e6 {[%emt 0:00:14]} Re8 {[%emt 0:00:47]} 33. Re1 {[%emt 0:01:06] [#] Strongly threatening e7.} Re7 {[%emt 0:00:05]} 34. Bb5 {[%emt 0:00:35]} Kxh4 {[%emt 0:00:28]} 35. Bd7 {[%emt 0:00:18] And now Rf1 would win.} Kg5 {[%emt 0:00:22]} 36. Re5+ {[%emt 0:00:24]} Kf6 {[%emt 0:00:11]} 37. Rxd5 {[%emt 0:00:10]} Rg7+ {[%emt 0:00:21]} 38. Kf2 {[%emt 0:00:46]} Rg4 {[%emt 0:00:13]} 39. Rh5 {[%emt 0:01:10] Weighted Error Value: White=0.18 (very precise) /Black=0.58} (39. e7 $142 Rg8 40. e8=Q Rxe8 41. Bxe8) 1-0